bitfinex/quotes_SOLUSD_20251120
["timestamp","ask_amount","ask_price","bid_price","bid_amount"]
[1763642413956,7.03630734,142.12,142.09,3.33856745]
[1763642414567,7.03630734,142.12,142.1,0.67]
[1763642414762,7.03630734,142.12,142.1,3.33856745]
[1763642415763,7.03630734,142.12,142.06,0.67]
[1763642415764,20.10096,142.11,142.06,0.67]
[1763642415944,7.03729767,142.1,142.07,2.66856745]
[1763642416352,7.03729767,142.1,142.07,3.33856745]
[1763642416558,7.03729767,142.1,142.08,0.67]
[1763642416866,24.63054186,142.1,142.07,2.66856745]
[1763642417163,24.63054186,142.1,142.06,3.33856745]
[1763642417383,1.98,142.09,142.05,2.66856745]
[1763642417669,1.98,142.09,142.05,3.33856745]
[1763642418047,7.03828828,142.08,142.06,3.33856745]
[1763642420252,8.71799971,142.09,142.07,3.36856745]
[1763642420452,8.71799971,142.09,142.08,0.7]
[1763642420453,1.68,142.09,142.08,0.7]
[1763642421556,1.68,142.09,142.08,3.36856745]
[1763642421752,8.71779294,142.09,142.08,3.36856745]
[1763642422154,8.71779294,142.09,142.03,16.58847878]
[1763642422362,8.71779294,142.09,142.07,2.66856745]
[1763642422761,8.71779294,142.09,142.07,3.36856745]
[1763642423369,8.71779294,142.09,142.07,0.7]
[1763642423879,8.71779294,142.09,142.06,2.66856745]
[1763642424072,8.71779294,142.09,142.06,0.7]
[1763642425179,8.71779294,142.09,142.06,3.36856745]
[1763642425650,1.68,142.09,142.07,3.36856745]
[1763642425850,7.03751709,142.1,142.08,2.66856745]
[1763642426059,7.03751709,142.1,142.09,2.66856745]
[1763642426273,25.15847709,142.1,142.09,0.7]
[1763642426774,25.15847709,142.1,142.08,2.66856745]
[1763642426967,25.15847709,142.1,142.08,3.36856745]
[1763642427475,25.15847709,142.1,142.07,2.66856745]
[1763642427865,25.15847709,142.1,142.07,3.36856745]
[1763642429059,25.15847709,142.1,142.08,0.66]
[1763642429561,25.15847709,142.1,142.07,2.66856745]
[1763642429766,25.15847709,142.1,142.07,3.32856745]
[1763642430470,42.75172128,142.1,142.07,2.66856745]
[1763642430781,18.12096,142.07,142.03,2.66856745]
[1763642431078,24.63921153,142.05,142.01,0.66]
[1763642431276,24.63921153,142.05,142.02,2.66856745]
[1763642431480,1.68,142.04,142.01,3.32856745]
[1763642431870,1.68,142.04,142.02,0.66]
[1763642432372,18.12096,142.02,141.98,3.32856745]
[1763642432677,19.80096,142.02,141.98,0.66]
[1763642432882,7.04175762,142.01,141.98,3.32856745]
[1763642433258,7.04175762,142.01,141.99,0.66]
[1763642433761,24.94615167,142.01,141.96,1.68]
[1763642433964,4.64856745,142.0,141.96,2.66856745]
[1763642434263,24.64615167,142.01,141.97,3.32856745]
[1763642434474,7.04175762,142.01,141.97,3.32856745]
[1763642434770,7.04175762,142.01,141.98,3.32856745]
[1763642435170,1.68,142.0,141.98,3.32856745]
[1763642436361,1.68,142.0,141.98,0.66]
[1763642437070,8.72257056,142.0,141.98,0.66]
[1763642437254,8.72257056,142.0,141.98,3.32856745]
[1763642437460,18.12096,142.0,141.98,3.32856745]
[1763642437688,18.12096,142.0,141.99,0.66]
[1763642438982,25.16321352,142.0,141.99,0.66]
[1763642439979,25.16321352,142.0,141.98,2.66856745]
[1763642439980,25.16321352,142.0,141.98,3.32856745]
[1763642440586,25.16321352,142.0,141.96,0.66]
[1763642440887,44.44884732,142.0,141.96,3.32856745]
[1763642441275,44.44884732,142.0,141.97,0.66]
[1763642444074,42.76884732,142.0,141.97,0.66]
[1763642444390,18.12096,142.0,141.98,2.66856745]
[1763642444889,18.12096,142.0,141.99,0.66]
[1763642445262,25.16322546,142.0,141.98,3.32856745]
[1763642445873,25.16322546,142.0,141.99,0.66]
[1763642448188,25.16322546,142.0,141.98,2.66856745]
[1763642448394,25.16322546,142.0,141.99,0.66]
[1763642449088,25.16322546,142.0,141.98,4.17381351]
[1763642449280,25.16322546,142.0,141.99,0.66]
[1763642451465,25.16322546,142.0,141.98,4.17381351]
[1763642451666,25.16322546,142.0,141.98,4.85381351]
[1763642451903,25.16322546,142.0,141.96,4.85381351]
[1763642452078,26.84322546,142.0,141.96,4.85381351]
[1763642452395,26.84322546,142.0,141.97,0.68]
[1763642452918,44.44885926,142.0,141.97,0.68]
[1763642453397,44.44885926,142.0,141.97,4.85381351]
[1763642454409,44.44885926,142.0,141.94,1.68]
[1763642454566,48.62267277,142.0,141.96,4.17381351]
[1763642454771,4.47381351,141.99,141.92,0.2]
[1763642455008,1.68,141.98,141.94,4.17381351]
[1763642455203,1.98,141.98,141.94,4.17381351]
[1763642455373,0.98,141.98,141.94,4.17381351]
[1763642455573,5.15381351,141.98,141.94,4.17381351]
[1763642455772,5.15381351,141.98,141.94,4.85381351]
[1763642456875,7.04374163,141.97,141.94,4.85381351]
[1763642457275,24.65309571,141.97,141.94,4.85381351]
[1763642458098,7.04374163,141.97,141.94,4.85381351]
[1763642458410,7.04374163,141.97,141.95,4.17381351]
[1763642459016,0.3,141.96,141.92,0.2]
[1763642459185,11.51755514,141.97,141.93,4.85381351]
[1763642459379,29.12690922,141.97,141.93,4.85381351]
[1763642459577,24.95309571,141.97,141.93,4.85381351]
[1763642460595,18.12096,141.94,141.92,0.2]
[1763642460910,7.34572676,141.93,141.92,0.2]
[1763642461224,11.51954027,141.93,141.92,0.2]
[1763642461390,18.12096,141.9,141.89,0.2]
[1763642461586,19.80096,141.9,141.89,0.2]
[1763642462315,23.97477351,141.9,141.89,0.2]
[1763642462484,20.10096,141.9,141.89,0.2]
[1763642462687,24.27477351,141.9,141.89,0.2]
[1763642462910,31.32198985,141.9,141.89,0.2]
[1763642463430,31.02198985,141.9,141.89,0.2]
[1763642463592,31.32198985,141.9,141.89,0.2]
[1763642466410,27.14817634,141.9,141.89,0.2]
[1763642466591,31.32198985,141.9,141.89,0.2]
[1763642467913,31.02198985,141.9,141.89,0.2]
[1763642468415,31.32198985,141.9,141.89,0.2]
[1763642470432,31.32198985,141.9,141.89,1e-08]
[1763642472218,27.14817634,141.9,141.89,1e-08]
[1763642472426,31.32198985,141.9,141.89,1e-08]
[1763642472724,31.02198985,141.9,141.89,1e-08]
[1763642472894,31.32198985,141.9,141.89,1e-08]
[1763642473091,31.02198985,141.9,141.89,1e-08]
[1763642473490,7.04721634,141.9,141.89,1e-08]
[1763642473724,8.72721634,141.9,141.89,1e-08]
[1763642474020,26.84817634,141.9,141.89,1e-08]
[1763642475434,31.02198985,141.9,141.89,1e-08]
[1763642477430,25.16817634,141.9,141.89,0.68000001]
[1763642477608,1.68,141.91,141.89,0.68000001]
[1763642477808,18.12096,141.9,141.89,0.68000001]
[1763642478026,1.68,141.91,141.89,0.68000001]
[1763642478616,18.12096,141.9,141.89,0.68000001]
[1763642480614,25.16817634,141.9,141.89,0.68000001]
[1763642480935,4.37381351,141.95,141.89,11.90149588]
[1763642481149,11.21805132,141.96,141.91,4.17381351]
[1763642481351,1.68,141.95,141.92,4.17381351]
[1763642481524,19.80096,141.95,141.92,4.17381351]
[1763642481843,18.12096,141.94,141.93,4.86381351]
[1763642482457,1.68,141.95,141.93,4.86381351]
[1763642482656,25.16539413,141.96,141.94,0.69]
[1763642482811,1.68,141.95,141.94,0.69]
[1763642483241,19.80096,141.95,141.94,0.69]
[1763642483437,19.80096,141.95,141.92,4.17381351]
[1763642483622,7.04523037,141.94,141.91,4.17381351]
[1763642483821,1.68,141.93,141.91,4.17381351]
[1763642484023,1.68,141.93,141.92,0.69]
[1763642485624,8.72572676,141.93,141.92,0.69]
[1763642486638,8.72572676,141.93,141.89,7.04740339]
[1763642486639,8.72572676,141.93,141.9,4.17381351]
[1763642486815,8.72572676,141.93,141.9,0.69]
[1763642487021,8.72572676,141.93,141.91,0.69]
[1763642493528,48.93481718,141.93,141.89,0.70000001]
[1763642493729,0.3,141.92,141.89,1e-08]
[1763642493944,7.04721634,141.9,141.89,1e-08]
[1763642494731,7.04721634,141.9,141.89,0.70000001]
[1763642494931,7.04721634,141.9,141.89,1e-08]
[1763642495131,7.04721634,141.9,141.89,0.70000001]
[1763642495329,7.04721634,141.9,141.89,1e-08]
[1763642496547,8.72694562,141.91,141.89,1e-08]
[1763642497546,9.02694562,141.91,141.89,1e-08]
[1763642497846,12.90075913,141.91,141.89,1e-08]
[1763642500522,22.29477351,141.9,141.89,1e-08]
[1763642501423,29.34198985,141.9,141.89,1e-08]
[1763642501623,25.16817634,141.9,141.89,1e-08]
[1763642504256,26.84817634,141.9,141.89,1e-08]
[1763642505650,31.02198985,141.9,141.89,1e-08]
[1763642508242,26.84817634,141.9,141.89,1e-08]
[1763642508444,26.84817634,141.9,141.89,0.70000001]
[1763642509262,26.84817634,141.9,141.89,1e-08]
[1763642509666,31.02198985,141.9,141.89,1e-08]
[1763642510449,26.84817634,141.9,141.89,1e-08]
[1763642510644,31.02198985,141.9,141.89,1e-08]
[1763642510847,29.52403599,141.9,141.89,1e-08]
[1763642511975,26.84817634,141.9,141.89,1e-08]
[1763642512839,29.52403599,141.9,141.89,1e-08]
[1763642515240,26.84817634,141.9,141.89,1e-08]
[1763642515446,26.84817634,141.9,141.89,0.67000001]
[1763642516102,26.84817634,141.9,141.89,1e-08]
[1763642516437,29.52403599,141.9,141.89,1e-08]
[1763642518753,29.82403599,141.9,141.89,1e-08]
[1763642519468,39.61286368,141.9,141.89,1e-08]
[1763642519974,42.43582849,141.9,141.89,1e-08]
[1763642520991,42.43582849,141.9,141.87,0.2]
[1763642520992,10.08882769,141.89,141.87,1e-08]
[1763642521146,10.08882769,141.89,141.84,1e-08]
[1763642521147,9.78882769,141.85,141.84,1e-08]
[1763642521351,27.90978769,141.82,141.78,0.1]
[1763642521556,20.79681965,141.8,141.78,0.1]
[1763642521771,2.6,141.76,141.75,0.67]
[1763642522068,4.28,141.76,141.75,0.67]
[1763642523643,11.33417607,141.76,141.75,0.67]
[1763642524273,4.28,141.76,141.75,0.67]
[1763642524452,11.33417607,141.76,141.75,0.67]
[1763642525271,11.33417607,141.76,141.66,5.92863575]
[1763642525570,2.67585965,141.75,141.72,0.67]
[1763642525751,9.73053337,141.75,141.72,0.67]
[1763642528170,4.28,141.76,141.74,0.77]
[1763642528171,29.53113761,141.76,141.74,0.77]
[1763642529142,29.53113761,141.76,141.74,0.1]
[1763642529346,26.85527796,141.76,141.74,0.77]
[1763642530073,29.53113761,141.76,141.74,0.77]
[1763642530750,26.85527796,141.76,141.74,0.77]
[1763642530949,7.05703716,141.78,141.75,2.67585965]
[1763642531152,1.68,141.77,141.76,0.67]
[1763642532157,8.73367849,141.77,141.76,0.67]
[1763642533589,8.73367849,141.77,141.74,0.1]
[1763642533761,8.73367849,141.77,141.75,0.67]
[1763642534088,8.73367849,141.77,141.74,0.1]
[1763642534089,29.04373437,141.77,141.74,0.77]
[1763642534255,26.36787472,141.77,141.74,0.77]
[1763642534580,29.04373437,141.77,141.74,0.77]
[1763642534990,2.67585965,141.76,141.74,0.77]
[1763642535167,19.80096,141.75,141.74,0.1]
[1763642535570,26.85563372,141.75,141.74,0.1]
[1763642537469,26.85563372,141.75,141.74,0.77]
[1763642537671,26.85563372,141.75,141.74,0.1]
[1763642538993,9.78882769,141.74,141.68,0.67]
[1763642539177,18.12096,141.71,141.68,0.67]
[1763642539371,1.68,141.7,141.68,0.67]
[1763642539571,19.80096,141.7,141.68,0.67]
[1763642539882,7.05766109,141.69,141.68,0.67]
[1763642540298,19.80096,141.7,141.68,3.34585965]
[1763642540671,19.80096,141.7,141.69,3.36585965]
[1763642540880,26.85812302,141.7,141.69,0.69]
[1763642541478,19.80096,141.7,141.69,3.36585965]
[1763642541783,18.12096,141.7,141.69,3.36585965]
[1763642542398,18.12096,141.7,141.69,0.69]
[1763642542598,25.17812302,141.7,141.69,0.69]
[1763642543500,18.12096,141.7,141.69,0.69]
[1763642544006,25.17812302,141.7,141.69,0.69]
[1763642545882,1.68,141.72,141.69,10.42328127]
[1763642546201,1.68,141.72,141.7,2.67585965]
[1763642546388,1.68,141.72,141.7,3.36585965]
[1763642546584,1.68,141.72,141.71,0.69]
[1763642546806,1.68,141.73,141.71,3.36585965]
[1763642547180,19.80096,141.73,141.72,0.69]
[1763642547490,18.12096,141.73,141.72,0.69]
[1763642547682,19.80096,141.73,141.72,0.69]
[1763642547886,26.85662923,141.73,141.72,0.69]
[1763642548790,25.17662923,141.73,141.72,0.69]
[1763642548994,26.85662923,141.73,141.72,0.69]
[1763642549800,19.80096,141.73,141.72,0.69]
[1763642550489,1.68,141.74,141.72,3.36585965]
[1763642550804,1.68,141.74,141.72,0.69]
[1763642551003,1.68,141.74,141.73,0.66]
[1763642552104,8.73517144,141.74,141.73,0.66]
[1763642552479,1.68,141.74,141.73,0.66]
[1763642552805,8.73517144,141.74,141.71,0.66]
[1763642553105,8.73517144,141.74,141.72,0.66]
[1763642554785,18.12096,141.71,141.68,0.66]
[1763642554983,19.80096,141.71,141.68,0.66]
[1763642555999,7.05716302,141.7,141.68,0.66]
[1763642557286,7.05716302,141.7,141.61,23.65134716]
[1763642557287,18.12096,141.66,141.64,0.66]
[1763642557485,1.68,141.66,141.64,0.66]
[1763642557712,19.80096,141.66,141.64,0.66]
[1763642558099,7.05965407,141.65,141.64,0.66]
[1763642559212,7.05965407,141.65,141.63,0.66]
[1763642559609,26.86029382,141.66,141.63,0.66]
[1763642560123,47.18404278,141.66,141.63,0.66]
[1763642562820,25.18029382,141.66,141.63,3.33585965]
[1763642563126,25.18029382,141.66,141.64,0.66]
[1763642564801,42.82818313,141.66,141.59,7.06261813]
[1763642565129,42.82818313,141.66,141.64,0.66]
[1763642565611,42.82818313,141.66,141.62,0.66]
[1763642565814,1.68,141.65,141.63,0.66]
[1763642566016,1.68,141.65,141.62,3.33585965]
[1763642566218,7.06015249,141.64,141.61,2.67585965]
[1763642566410,24.71053373,141.64,141.61,3.33585965]
[1763642566605,24.71053373,141.64,141.62,0.66]
[1763642567737,24.71053373,141.64,141.58,1.68]
[1763642567738,24.71053373,141.64,141.56,24.00924623]
[1763642567916,24.71053373,141.64,141.57,0.66]
[1763642568120,7.06114955,141.62,141.58,2.67585965]
[1763642568506,7.06114955,141.62,141.59,3.33585965]
[1763642568722,7.06114955,141.62,141.6,2.67585965]
[1763642568904,7.06114955,141.62,141.6,3.33585965]
[1763642569226,7.06114955,141.62,141.61,0.66]
[1763642569528,7.06114955,141.62,141.6,0.66]
[1763642569899,7.06114955,141.62,141.6,3.33585965]
[1763642570429,8.74078878,141.63,141.61,3.38585965]
[1763642570602,8.74078878,141.63,141.61,0.71]
[1763642570806,1.68,141.63,141.61,0.71]
[1763642571120,8.74076804,141.63,141.61,0.71]
[1763642571413,8.74076804,141.63,141.53,7.88828622]
[1763642571414,18.12096,141.6,141.59,4.90592795]
[1763642571826,26.39239552,141.63,141.59,4.90592795]
[1763642572124,18.12096,141.61,141.6,4.90592795]
[1763642572328,18.12096,141.61,141.54,13.04100528]
[1763642572329,7.06214689,141.6,141.59,4.19592795]
[1763642572703,7.06214689,141.6,141.59,4.90592795]
[1763642574308,25.18283069,141.61,141.59,4.90592795]
[1763642574617,26.86283069,141.61,141.58,4.90592795]
[1763642574816,44.51695116,141.61,141.58,4.90592795]
[1763642575834,44.51695116,141.61,141.59,0.71]
[1763642576336,44.51695116,141.61,141.58,4.90592795]
[1763642576538,44.51695116,141.61,141.58,4.19592795]
[1763642576706,44.51695116,141.61,141.58,0.71]
[1763642576908,44.51695116,141.61,141.58,4.90592795]
[1763642577319,44.51695116,141.61,141.58,0.71]
[1763642577513,0.3,141.6,141.55,0.71]
[1763642577813,1.68,141.59,141.58,4.19592795]
[1763642578238,1.68,141.59,141.58,4.90592795]
[1763642578610,1.68,141.6,141.58,4.90592795]
[1763642578805,1.68,141.6,141.59,4.90592795]
[1763642579042,18.12096,141.61,141.59,11.96838821]
[1763642579235,7.0607693,141.63,141.6,4.90592795]
[1763642579236,26.8617293,141.63,141.6,4.90592795]
[1763642579440,26.8617293,141.63,141.61,4.90592795]
[1763642580853,1.68,141.63,141.62,4.90592795]
[1763642581058,26.39809921,141.66,141.62,11.9670167]
[1763642581219,44.51905921,141.66,141.64,4.19592795]
[1763642581414,26.86031557,141.66,141.64,4.19592795]
[1763642581719,26.86031557,141.66,141.64,0.71]
[1763642582455,1.68,141.66,141.65,4.19592795]
[1763642582848,1.68,141.66,141.65,4.90592795]
[1763642583356,8.73915572,141.66,141.65,0.71]
[1763642583656,26.86011572,141.66,141.65,4.90592795]
[1763642585328,26.86011572,141.66,141.62,0.71]
[1763642585525,0.3,141.65,141.6,0.71]
[1763642585727,1.68,141.64,141.62,4.19592795]
[1763642586346,47.32393298,141.66,141.63,4.90592795]
[1763642586347,18.12096,141.66,141.63,4.90592795]
[1763642586653,18.12096,141.66,141.65,4.19592795]
[1763642586834,18.12096,141.66,141.65,4.90592795]
[1763642587341,25.18011572,141.66,141.65,4.90592795]
[1763642588555,43.12800503,141.66,141.64,4.19592795]
[1763642588751,42.82800503,141.66,141.63,4.19592795]
[1763642589053,1.68,141.65,141.62,4.90592795]
[1763642589261,1.98,141.65,141.6,0.71]
[1763642589427,6.17592795,141.65,141.6,0.71]
[1763642589630,7.06015249,141.64,141.61,4.19592795]
[1763642589953,1.68,141.63,141.61,4.19592795]
[1763642590136,1.68,141.63,141.61,4.90592795]
[1763642590333,1.68,141.63,141.61,0.71]
[1763642590561,1.68,141.63,141.61,4.90592795]
[1763642591643,9.78882769,141.61,141.56,0.71]
[1763642591823,18.12096,141.58,141.54,5.00592795]
[1763642592025,1.68,141.57,141.54,5.00592795]
[1763642592264,1.68,141.57,141.55,0.71]
[1763642592424,1.68,141.57,141.54,4.29592795]
[1763642592625,1.68,141.57,141.54,5.00592795]
[1763642592831,1.68,141.57,141.55,4.90592795]
[1763642593321,1.68,141.57,141.54,0.1]
[1763642593322,1.68,141.57,141.54,5.00592795]
[1763642593737,1.68,141.57,141.55,4.90592795]
[1763642593951,8.7436687,141.57,141.55,4.90592795]
[1763642594138,8.7436687,141.57,141.56,0.71]
[1763642594847,8.7436687,141.57,141.54,5.00592795]
[1763642595255,8.7436687,141.57,141.55,0.71]
[1763642595551,8.7436687,141.57,141.55,4.90592795]
[1763642595728,8.7436687,141.57,141.55,0.71]
[1763642597036,8.7436687,141.57,141.55,4.90592795]
[1763642597223,1.68,141.57,141.55,4.19592795]
[1763642597425,1.68,141.57,141.56,4.90592795]
[1763642598346,1.68,141.57,141.56,0.71]
[1763642598664,8.74364342,141.57,141.56,0.71]
[1763642599155,1.68,141.57,141.56,0.71]
[1763642600922,8.74364342,141.57,141.56,0.71]
[1763642601127,1.68,141.57,141.56,0.71]
[1763642601322,8.74364342,141.57,141.56,0.71]
[1763642602926,1.68,141.57,141.56,0.71]
[1763642603153,8.91065281,141.84,141.56,11.97007036]
[1763642603154,4.19592795,141.62,141.56,11.97007036]
[1763642603355,1.68,141.62,141.58,4.19592795]
[1763642603551,18.12096,141.6,141.58,4.19592795]
[1763642603853,18.12096,141.6,141.58,4.90592795]
[1763642604062,18.12096,141.6,141.56,0.71]
[1763642604259,7.06264566,141.59,141.57,4.19592795]
[1763642604768,24.71925982,141.59,141.56,0.71]
[1763642605567,24.71925982,141.59,141.56,4.90592795]
[1763642606033,24.71925982,141.59,141.55,4.19592795]
[1763642606365,7.06364342,141.57,141.55,4.19592795]
[1763642606528,7.06364342,141.57,141.55,4.90592795]
[1763642607365,7.06364342,141.57,141.55,4.19592795]
[1763642608968,7.06364342,141.57,141.55,4.90592795]
[1763642609568,1.68,141.58,141.56,4.90592795]
[1763642609867,1.68,141.58,141.57,4.19592795]
[1763642610082,1.68,141.58,141.57,4.90592795]
[1763642611187,18.12096,141.59,141.57,11.96951264]
[1763642611485,18.12096,141.59,141.58,4.90592795]
[1763642611647,25.18360566,141.59,141.58,4.90592795]
[1763642611847,18.12096,141.59,141.58,4.90592795]
[1763642612450,25.18360566,141.59,141.58,4.90592795]
[1763642613077,25.18360566,141.59,141.57,4.19592795]
[1763642613374,25.18360566,141.59,141.57,4.88592795]
[1763642613572,25.18360566,141.59,141.57,4.19592795]
[1763642615078,25.18360566,141.59,141.57,4.88592795]
[1763642615454,25.18360566,141.59,141.56,4.88592795]
[1763642616872,25.18360566,141.59,141.56,0.69]
[1763642617072,25.18360566,141.59,141.56,4.88592795]
[1763642617271,1.68,141.58,141.54,0.79]
[1763642617474,1.68,141.58,141.55,4.88592795]
[1763642618081,1.68,141.58,141.55,4.19592795]
[1763642618384,1.68,141.58,141.56,4.88592795]
[1763642618563,1.68,141.58,141.55,4.19592795]
[1763642618961,1.68,141.58,141.55,4.88592795]
[1763642619164,7.06364342,141.57,141.55,4.88592795]
[1763642621487,8.74332564,141.58,141.55,4.88592795]
[1763642624588,8.74332564,141.58,141.56,0.69]
[1763642624999,8.74332564,141.58,141.56,4.88592795]
[1763642625162,19.80096,141.58,141.57,4.19592795]
[1763642625362,19.80096,141.58,141.57,4.88592795]
[1763642625691,26.86410451,141.58,141.57,4.88592795]
[1763642626058,19.80096,141.58,141.57,4.88592795]
[1763642626458,7.06236736,141.6,141.57,4.88592795]
[1763642626683,1.68,141.61,141.58,4.88592795]
[1763642626886,18.12096,141.6,141.59,0.69]
[1763642628192,8.74209639,141.61,141.59,0.69]
[1763642628379,26.86305639,141.61,141.59,0.69]
[1763642629580,8.74209639,141.61,141.59,0.69]
[1763642630868,26.69621686,141.61,141.54,17.27066281]
[1763642631091,26.69621686,141.61,141.57,4.87592795]
[1763642631470,26.39621686,141.61,141.58,0.68]
[1763642631778,26.39621686,141.61,141.58,4.87592795]
[1763642632982,26.39621686,141.61,141.58,3.36636713]
[1763642633173,26.39621686,141.61,141.59,0.68]
[1763642635269,26.39621686,141.61,141.58,3.36636713]
[1763642635688,26.39621686,141.61,141.58,0.68]
[1763642635898,26.39621686,141.61,141.57,2.68636713]
[1763642636091,26.69621686,141.61,141.57,2.68636713]
[1763642636271,0.3,141.6,141.57,2.68636713]
[1763642636597,1.68,141.59,141.57,3.36636713]
[1763642636779,1.68,141.59,141.57,2.68636713]
[1763642636979,8.74264566,141.59,141.58,0.68]
[1763642637695,8.74264566,141.59,141.57,2.68636713]
[1763642638097,8.74264566,141.59,141.58,0.68]
[1763642638603,8.74264566,141.59,141.56,2.68636713]
[1763642638972,8.74264566,141.59,141.57,0.68]
[1763642642302,8.74264566,141.59,141.57,3.36636713]
[1763642643298,8.74264566,141.59,141.57,2.68636713]
[1763642643681,8.74264566,141.59,141.57,0.68]
[1763642644002,8.74264566,141.59,141.56,2.68636713]
[1763642644405,8.74264566,141.59,141.57,0.68]
[1763642644585,8.74264566,141.59,141.56,3.36636713]
[1763642647208,26.39925982,141.59,141.55,2.68636713]
[1763642647412,0.3,141.58,141.55,2.68636713]
[1763642647816,1.68,141.57,141.55,2.68636713]
[1763642648110,1.68,141.57,141.55,3.36636713]
[1763642648907,7.06414241,141.56,141.55,3.36636713]
[1763642650203,7.06414241,141.56,141.55,0.68]
[1763642650511,7.06414241,141.56,141.55,2.68636713]
[1763642651006,7.06414241,141.56,141.55,3.36636713]
[1763642653906,8.74383931,141.57,141.55,0.68]
[1763642654122,8.74383931,141.57,141.55,3.36636713]
[1763642654287,8.74383931,141.57,141.55,0.68]
[1763642655208,8.74383931,141.57,141.54,2.78636713]
[1763642655413,0.3,141.56,141.54,0.1]
[1763642655602,0.3,141.56,141.49,0.1]
[1763642655603,27.90978769,141.54,141.49,0.1]
[1763642655801,2.68636713,141.51,141.49,0.1]
[1763642656009,1.68,141.5,141.49,0.1]
[1763642657110,4.66636713,141.5,141.49,0.1]
[1763642657298,1.68,141.5,141.49,0.1]
[1763642657494,26.8680978,141.5,141.49,0.1]
[1763642657683,18.12096,141.5,141.49,0.1]
[1763642657889,18.12096,141.51,141.49,3.46636713]
[1763642658305,18.12096,141.51,141.5,3.36636713]
[1763642658502,1.68,141.52,141.5,0.68]
[1763642658791,7.06514059,141.54,141.51,3.36636713]
[1763642658992,25.18610059,141.54,141.52,3.36636713]
[1763642659207,17.66105037,141.56,141.52,3.36636713]
[1763642659208,7.06473553,141.55,141.52,3.36636713]
[1763642659404,8.74473553,141.55,141.53,0.68]
[1763642659598,44.5272992,141.55,141.52,2.68636713]
[1763642659911,44.5272992,141.55,141.53,0.68]
[1763642661702,26.86569553,141.55,141.53,3.36636713]
[1763642661901,26.86569553,141.55,141.54,0.7]
[1763642662924,25.75132018,141.55,141.53,2.68636713]
[1763642663089,25.75132018,141.55,141.53,0.7]
[1763642667234,35.31517854,141.59,141.53,0.7]
[1763642667235,9.78882769,141.6,141.54,2.68636713]
[1763642667531,18.12096,141.57,141.56,2.68636713]
[1763642667893,18.12096,141.57,141.56,3.38636713]
[1763642668089,44.52021982,141.59,141.56,0.7]
[1763642668390,44.52021982,141.59,141.56,2.68636713]
[1763642668592,44.52021982,141.59,141.57,0.7]
[1763642668830,47.50658695,141.59,141.55,2.68636713]
[1763642669333,47.50658695,141.59,141.55,3.38636713]
[1763642669495,2.68636713,141.58,141.55,0.7]
[1763642669925,47.50658695,141.59,141.55,0.7]
[1763642670716,47.20658695,141.59,141.55,3.38636713]
[1763642670924,47.20658695,141.59,141.56,0.68]
[1763642671222,44.52021982,141.59,141.56,0.68]
[1763642672322,44.52021982,141.59,141.56,3.36636713]
[1763642674121,44.52021982,141.59,141.57,0.68]
[1763642674496,44.52021982,141.59,141.56,3.36636713]
[1763642675027,44.52021982,141.59,141.56,0.68]
[1763642675604,44.52021982,141.59,141.56,3.36636713]
[1763642676101,7.06180106,141.61,141.58,2.68636713]
[1763642676419,26.86276106,141.61,141.59,0.68]
[1763642677423,8.74180106,141.61,141.59,0.68]
[1763642677915,18.12096,141.6,141.59,0.68]
[1763642679329,25.18310689,141.6,141.59,0.68]
[1763642679725,25.18310689,141.6,141.58,0.68]
[1763642680910,8.74176994,141.61,141.58,3.36636713]
[1763642681261,18.12096,141.61,141.59,2.68636713]
[1763642681434,20.33734741,141.64,141.6,2.68636713]
[1763642681435,8.74077586,141.63,141.6,2.68636713]
[1763642681628,7.06077586,141.63,141.61,2.68636713]
[1763642681802,7.06077586,141.63,141.61,3.36636713]
[1763642682002,7.06077586,141.63,141.62,0.68]
[1763642682213,7.06077586,141.63,141.58,7.06307381]
[1763642682420,8.74077586,141.63,141.61,0.68]
[1763642683604,8.74077586,141.63,141.61,3.36636713]
[1763642683929,8.74077586,141.63,141.61,0.68]
[1763642684138,26.39240334,141.63,141.59,3.36636713]